[Event "Rapid Tournament (RAP)"]
[Site "Biel, Switzerland"]
[Date "2026.07.12"]
[Round "5.45"]
[White "Alsaqer, Meshal"]
[Black "Gheorghiu, Harry"]
[Result "0-1"]
[TimeControl "15 + 5"]
[WhiteTitle "-"]
[BlackTitle "-"]
[WhiteFideId "10301771"]
[BlackFideId "1248839"]
[WhiteElo "1903"]
[BlackElo "1751"]

1. d4 {[%clk 00:15:07]} {[%emt 00:00:01]} c5 {[%clk 00:15:09]} 2. c3 {[%clk
00:15:09]} {[%emt 00:00:04]} d5 {[%clk 00:15:02]} {[%emt 00:00:13]} 3. Nf3
{[%clk 00:15:09]} {[%emt 00:00:04]} e6 {[%clk 00:14:59]} {[%emt 00:00:09]} 4.
Bf4 {[%clk 00:15:01]} {[%emt 00:00:12]} Nf6 {[%clk 00:14:53]} {[%emt 00:00:12]}
5. e3 {[%clk 00:14:56]} {[%emt 00:00:10]} Nc6 {[%clk 00:14:30]} {[%emt
00:00:29]} 6. Bb5 {[%clk 00:14:40]} {[%emt 00:00:19]} Qb6 {[%clk 00:14:17]}
{[%emt 00:00:19]} 7. Qb3 {[%clk 00:14:23]} {[%emt 00:00:21]} Bd7 {[%clk
00:13:59]} {[%emt 00:00:24]} 8. Bxc6 {[%clk 00:13:58]} {[%emt 00:00:30]} Bxc6
{[%clk 00:13:50]} {[%emt 00:00:14]} 9. O-O {[%clk 00:13:41]} {[%emt 00:00:21]}
Bb5 {[%clk 00:12:40]} {[%emt 00:01:16]} 10. Re1 {[%clk 00:13:30]} {[%emt
00:00:14]} Bd3 {[%clk 00:11:57]} {[%emt 00:00:49]} 11. Ne5 {[%clk 00:13:04]}
{[%emt 00:00:31]} Bg6 {[%clk 00:11:14]} {[%emt 00:00:49]} 12. Qa4+ {[%clk
00:12:48]} {[%emt 00:00:21]} Kd8 {[%clk 00:10:32]} {[%emt 00:00:48]} 13. Bg5
{[%clk 00:12:03]} {[%emt 00:00:48]} Qc7 {[%clk 00:10:14]} {[%emt 00:00:24]} 14.
Na3 {[%clk 00:11:45]} {[%emt 00:00:22]} a6 {[%clk 00:10:06]} {[%emt 00:00:14]}
15. Nb5 {[%clk 00:11:01]} {[%emt 00:00:49]} Qc8 {[%clk 00:09:46]} {[%emt
00:00:25]} 16. Na3 {[%clk 00:10:38]} {[%emt 00:00:28]} Be7 {[%clk 00:09:48]}
{[%emt 00:00:02]} 17. Rac1 {[%clk 00:09:53]} {[%emt 00:00:50]} b5 {[%clk
00:09:46]} {[%emt 00:00:08]} 18. Qd1 {[%clk 00:09:36]} {[%emt 00:00:21]} c4
{[%clk 00:09:45]} {[%emt 00:00:07]} 19. Nb1 {[%clk 00:09:12]} {[%emt 00:00:28]}
Ne4 {[%clk 00:09:16]} {[%emt 00:00:35]} 20. Bf4 {[%clk 00:08:56]} {[%emt
00:00:19]} f6 {[%clk 00:07:57]} {[%emt 00:01:25]} 21. Nxg6 {[%clk 00:08:44]}
{[%emt 00:00:17]} hxg6 {[%clk 00:08:00]} {[%emt 00:00:02]} 22. Nd2 {[%clk
00:08:23]} {[%emt 00:00:27]} g5 {[%clk 00:07:36]} {[%emt 00:00:28]} 23. Nxe4
{[%clk 00:07:47]} {[%emt 00:00:42]} gxf4 {[%clk 00:07:36]} {[%emt 00:00:05]} 24.
Nd2 {[%clk 00:07:38]} {[%emt 00:00:14]} Qc7 {[%clk 00:07:15]} {[%emt 00:00:26]}
25. Nf1 {[%clk 00:07:11]} {[%emt 00:00:30]} Bd6 {[%clk 00:07:03]} {[%emt
00:00:18]} 26. Qf3 {[%clk 00:06:36]} {[%emt 00:00:40]} fxe3 {[%clk 00:06:39]}
{[%emt 00:00:30]} 27. g3 {[%clk 00:05:35]} exf2+ {[%clk 00:06:31]} {[%emt
00:01:19]} 28. Qxf2 {[%clk 00:05:35]} Kd7 {[%clk 00:05:54]} {[%emt 00:00:47]}
29. Qf3 {[%clk 00:05:19]} Rh6 {[%clk 00:05:11]} {[%emt 00:01:09]} 30. Qg4
{[%clk 00:04:52]} Kc6 {[%clk 00:04:18]} {[%emt 00:01:30]} 31. Rxe6 {[%clk
00:04:09]} Rah8 {[%clk 00:04:21]} {[%emt 00:00:49]} 32. Rce1 {[%clk 00:03:55]}
Qd7 {[%clk 00:02:32]} {[%emt 00:02:13]} 33. Qf3 {[%clk 00:02:29]} Rh5 {[%clk
00:02:08]} {[%emt 00:02:01]} 34. b3 {[%clk 00:02:25]} Kc7 {[%clk 00:01:32]}
{[%emt 00:00:50]} 35. bxc4 {[%clk 00:02:19]} bxc4 {[%clk 00:01:31]} {[%emt
00:00:18]} 36. R6e2 {[%clk 00:02:04]} Rf5 {[%clk 00:01:18]} {[%emt 00:00:37]}
37. Qg2 {[%clk 00:01:57]} Qf7 {[%clk 00:00:59]} {[%emt 00:00:36]} 38. Rb2
{[%clk 00:01:37]} Qg6 {[%clk 00:00:37]} {[%emt 00:00:51]} 39. Reb1 {[%clk
00:01:37]} Rfh5 {[%clk 00:00:17]} {[%emt 00:00:31]} 40. Rb7+ {[%clk 00:01:31]}
Kc8 {[%clk 00:00:19]} {[%emt 00:00:12]} 41. R7b2 {[%clk 00:01:04]} Qd3 {[%clk
00:00:21]} {[%emt 00:00:37]} 42. h4 {[%clk 00:00:30]} Qxc3 {[%clk 00:00:23]}
{[%emt 00:00:42]} 43. Qh3+ {[%clk 00:00:31]} f5 {[%clk 00:00:24]} {[%emt
00:00:08]} 44. Rb6 {[%clk 00:00:26]} Qxd4+ {[%clk 00:00:27]} {[%emt 00:00:13]}
45. Kh2 {[%clk 00:00:22]} Qf2+ {[%clk 00:00:28]} {[%emt 00:00:12]} 46. Qg2
{[%clk 00:00:25]} Rxh4# {[%clk 00:00:28]} 0-1

[Event "Rapid Tournament (RAP)"]
[Site "Biel, Switzerland"]
[Date "2026.07.12"]
[Round "5.46"]
[White "Jehnichen, Kai"]
[Black "Chu, Wa Ching David"]
[Result "1-0"]
[TimeControl "15 + 5"]
[WhiteTitle "-"]
[BlackTitle "-"]
[WhiteFideId "24684333"]
[BlackFideId "6013180"]
[WhiteElo "1903"]
[BlackElo "1723"]

1. e4 {[%clk 00:15:07]} {[%emt 00:00:02]} c5 {[%clk 00:15:09]} {[%emt
00:00:02]} 2. Nf3 {[%clk 00:15:11]} d6 {[%clk 00:15:13]} 3. d4 {[%clk
00:15:16]} cxd4 {[%clk 00:15:17]} 4. Nxd4 {[%clk 00:15:19]} {[%emt 00:00:04]}
Nf6 {[%clk 00:15:20]} 5. Nc3 {[%clk 00:15:23]} g6 {[%clk 00:15:24]} {[%emt
00:00:02]} 6. g3 {[%clk 00:15:17]} {[%emt 00:00:11]} Bg7 {[%clk 00:15:26]}
{[%emt 00:00:03]} 7. Bg2 {[%clk 00:15:21]} O-O {[%clk 00:15:27]} {[%emt
00:00:04]} 8. O-O {[%clk 00:15:24]} {[%emt 00:00:03]} Nc6 {[%clk 00:15:31]}
{[%emt 00:00:01]} 9. Nde2 {[%clk 00:15:20]} {[%emt 00:00:10]} Bd7 {[%clk
00:15:10]} {[%emt 00:00:25]} 10. h3 {[%clk 00:15:23]} {[%emt 00:00:02]} Rc8
{[%clk 00:15:07]} {[%emt 00:00:07]} 11. Be3 {[%clk 00:15:25]} {[%emt 00:00:04]}
a6 {[%clk 00:15:05]} {[%emt 00:00:08]} 12. a4 {[%clk 00:15:22]} {[%emt
00:00:07]} Ne5 {[%clk 00:13:59]} {[%emt 00:01:10]} 13. b3 {[%clk 00:15:17]}
{[%emt 00:00:10]} Qa5 {[%clk 00:13:41]} {[%emt 00:00:24]} 14. Nd5 {[%clk
00:15:12]} {[%emt 00:00:10]} Nxd5 {[%clk 00:13:26]} {[%emt 00:00:20]} 15. exd5
{[%clk 00:15:12]} {[%emt 00:00:04]} Qc7 {[%clk 00:12:16]} {[%emt 00:01:15]} 16.
f4 {[%clk 00:15:05]} {[%emt 00:00:13]} Ng4 {[%clk 00:10:21]} {[%emt 00:02:00]}
17. hxg4 {[%clk 00:14:38]} {[%emt 00:00:32]} Bxa1 {[%clk 00:10:21]} {[%emt
00:00:05]} 18. Qxa1 {[%clk 00:14:39]} {[%emt 00:00:05]} Qxc2 {[%clk 00:09:54]}
{[%emt 00:00:31]} 19. Nd4 {[%clk 00:14:25]} {[%emt 00:00:18]} Qc3 {[%clk
00:09:33]} {[%emt 00:00:26]} 20. Qe1 {[%clk 00:14:19]} {[%emt 00:00:11]} Qxe1
{[%clk 00:08:56]} {[%emt 00:00:42]} 21. Rxe1 {[%clk 00:14:22]} {[%emt
00:00:02]} Rc3 {[%clk 00:07:34]} {[%emt 00:01:27]} 22. Bf2 {[%clk 00:14:21]}
{[%emt 00:00:06]} Re8 {[%clk 00:07:20]} {[%emt 00:00:19]} 23. f5 {[%clk
00:14:09]} {[%emt 00:00:18]} Kf8 {[%clk 00:06:49]} {[%emt 00:00:35]} 24. Bf1
{[%clk 00:13:33]} {[%emt 00:00:41]} Rc7 {[%clk 00:05:54]} {[%emt 00:00:59]} 25.
Bc4 {[%clk 00:13:29]} {[%emt 00:00:10]} Rb8 {[%clk 00:05:30]} {[%emt 00:00:30]}
26. a5 {[%clk 00:13:32]} {[%emt 00:00:02]} Re8 {[%clk 00:04:41]} {[%emt
00:00:53]} 27. Kg2 {[%clk 00:13:34]} {[%emt 00:00:03]} Kg8 {[%clk 00:03:13]}
{[%emt 00:01:34]} 28. Be3 {[%clk 00:13:32]} {[%emt 00:00:06]} Rc5 {[%clk
00:02:49]} {[%emt 00:00:30]} 29. Bd2 {[%clk 00:13:26]} {[%emt 00:00:10]} Bb5
{[%clk 00:02:12]} {[%emt 00:00:43]} 30. fxg6 {[%clk 00:12:44]} {[%emt
00:00:47]} hxg6 {[%clk 00:02:05]} {[%emt 00:00:12]} 31. Bxb5 {[%clk 00:10:16]}
{[%emt 00:02:33]} axb5 {[%clk 00:02:06]} {[%emt 00:00:04]} 32. Rh1 {[%clk
00:10:00]} {[%emt 00:00:20]} Rxd5 {[%clk 00:01:47]} {[%emt 00:00:24]} 33. Bc3
{[%clk 00:10:03]} {[%emt 00:00:03]} e5 {[%clk 00:01:07]} {[%emt 00:00:45]} 34.
Nf3 {[%clk 00:09:54]} {[%emt 00:00:13]} Rc8 {[%clk 00:00:57]} {[%emt 00:00:15]}
35. Bb4 {[%clk 00:09:45]} {[%emt 00:00:15]} Rd3 {[%clk 00:00:31]} {[%emt
00:00:32]} 36. Ng5 {[%clk 00:09:33]} {[%emt 00:00:16]} 1-0

[Event "Rapid Tournament (RAP)"]
[Site "Biel, Switzerland"]
[Date "2026.07.12"]
[Round "5.47"]
[White "Surdez, Patrick"]
[Black "Kwiatkowski, Maciej"]
[Result "0-1"]
[TimeControl "15 + 5"]
[WhiteTitle "-"]
[BlackTitle "-"]
[WhiteFideId "1380206"]
[BlackFideId "1360175"]
[WhiteElo "1695"]
[BlackElo "1902"]

1. c4 {[%clk 00:15:06]} {[%emt 00:00:03]} Nf6 {[%clk 00:15:06]} {[%emt
00:00:04]} 2. Nc3 {[%clk 00:15:08]} {[%emt 00:00:03]} e6 {[%clk 00:15:03]}
{[%emt 00:00:09]} 3. g3 {[%clk 00:15:00]} {[%emt 00:00:13]} d5 {[%clk
00:14:39]} {[%emt 00:00:29]} 4. Bg2 {[%clk 00:14:21]} {[%emt 00:00:44]} Be7
{[%clk 00:14:27]} {[%emt 00:00:17]} 5. Nf3 {[%clk 00:13:18]} {[%emt 00:01:08]}
O-O {[%clk 00:14:30]} {[%emt 00:00:03]} 6. b3 {[%clk 00:13:05]} {[%emt
00:00:17]} d4 {[%clk 00:12:47]} {[%emt 00:01:47]} 7. Na4 {[%clk 00:11:43]}
{[%emt 00:01:28]} c5 {[%clk 00:10:07]} {[%emt 00:02:45]} 8. d3 {[%clk
00:11:08]} {[%emt 00:00:41]} Nc6 {[%clk 00:10:04]} {[%emt 00:00:07]} 9. O-O
{[%clk 00:11:02]} {[%emt 00:00:11]} Qc7 {[%clk 00:09:38]} {[%emt 00:00:31]} 10.
Re1 {[%clk 00:10:35]} {[%emt 00:00:32]} e5 {[%clk 00:08:28]} {[%emt 00:01:15]}
11. Qc2 {[%clk 00:09:52]} {[%emt 00:00:48]} Bf5 {[%clk 00:07:59]} {[%emt
00:00:33]} 12. Nh4 {[%clk 00:09:43]} {[%emt 00:00:15]} Be6 {[%clk 00:07:45]}
{[%emt 00:00:19]} 13. a3 {[%clk 00:09:43]} {[%emt 00:00:06]} Rac8 {[%clk
00:06:49]} {[%emt 00:01:00]} 14. Bd2 {[%clk 00:09:34]} {[%emt 00:00:14]} Ng4
{[%clk 00:05:19]} {[%emt 00:01:35]} 15. Nf3 {[%clk 00:09:12]} {[%emt 00:00:27]}
f5 {[%clk 00:05:06]} {[%emt 00:00:18]} 16. Ng5 {[%clk 00:08:20]} {[%emt
00:00:57]} Bxg5 {[%clk 00:05:04]} {[%emt 00:00:07]} 17. Bxg5 {[%clk 00:08:24]}
{[%emt 00:00:01]} b6 {[%clk 00:04:48]} {[%emt 00:00:21]} 18. h3 {[%clk
00:07:40]} {[%emt 00:00:49]} Nf6 {[%clk 00:04:35]} {[%emt 00:00:18]} 19. e3
{[%clk 00:06:19]} {[%emt 00:01:27]} Bd7 {[%clk 00:01:47]} {[%emt 00:02:52]} 20.
Nb2 {[%clk 00:05:22]} {[%emt 00:01:02]} h6 {[%clk 00:01:33]} {[%emt 00:00:19]}
21. Bxf6 {[%clk 00:05:19]} {[%emt 00:00:08]} Rxf6 {[%clk 00:01:37]} {[%emt
00:00:01]} 22. Rad1 {[%clk 00:03:47]} {[%emt 00:01:36]} Rcf8 {[%clk 00:01:40]}
{[%emt 00:00:03]} 23. f4 {[%clk 00:02:56]} {[%emt 00:00:56]} dxe3 {[%clk
00:01:25]} {[%emt 00:00:20]} 24. Rxe3 {[%clk 00:00:36]} {[%emt 00:02:25]} exf4
{[%clk 00:01:17]} {[%emt 00:00:14]} 25. gxf4 {[%clk 00:00:38]} {[%emt
00:00:02]} Qxf4 {[%clk 00:01:20]} {[%emt 00:00:02]} 26. Rf3 {[%clk 00:00:41]}
{[%emt 00:00:02]} Qd4+ {[%clk 00:01:22]} {[%emt 00:00:03]} 27. Kh1 {[%clk
00:00:41]} {[%emt 00:00:04]} f4 {[%clk 00:01:19]} {[%emt 00:00:08]} 28. Re1
{[%clk 00:00:38]} {[%emt 00:00:08]} Ne5 {[%clk 00:01:17]} {[%emt 00:00:08]} 29.
Rf2 {[%clk 00:00:31]} {[%emt 00:00:11]} f3 {[%clk 00:01:17]} {[%emt 00:00:05]}
30. Bf1 {[%clk 00:00:26]} {[%emt 00:00:11]} Ng6 {[%clk 00:01:19]} {[%emt
00:00:03]} 31. Re4 {[%clk 00:00:23]} {[%emt 00:00:08]} Qd6 {[%clk 00:01:19]}
{[%emt 00:00:05]} 32. Rh2 {[%emt 00:00:24]} 0-1

[Event "Rapid Tournament (RAP)"]
[Site "Biel, Switzerland"]
[Date "2026.07.12"]
[Round "5.48"]
[White "Gast, Michael"]
[Black "Ranieri, Pierpaolo"]
[Result "1/2-1/2"]
[TimeControl "15 + 5"]
[WhiteTitle "-"]
[BlackTitle "-"]
[WhiteFideId "1373196"]
[BlackFideId "893986"]
[WhiteElo "1682"]
[BlackElo "1891"]

1. e4 {[%clk 00:15:08]} {[%emt 00:02:57]} d6 {[%clk 00:15:09]} {[%emt
00:00:02]} 2. d4 {[%clk 00:15:10]} {[%emt 00:00:03]} Nf6 {[%clk 00:15:12]}
{[%emt 00:00:02]} 3. Nc3 {[%clk 00:15:10]} {[%emt 00:00:04]} g6 {[%clk
00:15:16]} {[%emt 00:00:02]} 4. Be3 {[%clk 00:15:12]} {[%emt 00:00:03]} c6
{[%clk 00:15:19]} {[%emt 00:00:02]} 5. h3 {[%clk 00:14:56]} {[%emt 00:00:21]}
b5 {[%clk 00:15:19]} {[%emt 00:00:05]} 6. Bd3 {[%clk 00:14:44]} {[%emt
00:00:17]} Nbd7 {[%clk 00:15:18]} {[%emt 00:00:05]} 7. g4 {[%clk 00:14:03]}
{[%emt 00:00:47]} Nb6 {[%clk 00:15:09]} {[%emt 00:00:14]} 8. e5 {[%clk
00:12:59]} {[%emt 00:01:10]} dxe5 {[%clk 00:14:52]} {[%emt 00:00:21]} 9. dxe5
{[%clk 00:12:51]} {[%emt 00:00:13]} Nfd5 {[%clk 00:14:42]} {[%emt 00:00:14]} 10.
Be4 {[%clk 00:11:19]} {[%emt 00:01:37]} Nxe3 {[%clk 00:12:13]} {[%emt
00:02:35]} 11. Qxd8+ {[%clk 00:11:04]} {[%emt 00:00:19]} Kxd8 {[%clk 00:12:16]}
{[%emt 00:00:04]} 12. fxe3 {[%clk 00:10:59]} {[%emt 00:00:08]} Kc7 {[%clk
00:11:49]} {[%emt 00:00:32]} 13. Nxb5+ {[%clk 00:10:41]} {[%emt 00:00:24]} cxb5
{[%clk 00:11:28]} {[%emt 00:00:27]} 14. Bxa8 {[%clk 00:10:43]} {[%emt
00:00:02]} Nxa8 {[%clk 00:11:31]} {[%emt 00:00:02]} 15. O-O-O {[%clk 00:10:24]}
{[%emt 00:00:24]} Bg7 {[%clk 00:11:29]} {[%emt 00:00:07]} 16. Nf3 {[%clk
00:10:13]} {[%emt 00:00:16]} Bb7 {[%clk 00:11:28]} {[%emt 00:00:06]} 17. Rhf1
{[%clk 00:10:15]} {[%emt 00:00:02]} Nb6 {[%clk 00:10:59]} {[%emt 00:00:35]} 18.
Ng5 {[%clk 00:10:10]} {[%emt 00:00:10]} Nc4 {[%clk 00:09:57]} {[%emt 00:01:07]}
19. Rxf7 {[%clk 00:09:45]} {[%emt 00:00:30]} Bxe5 {[%clk 00:09:22]} {[%emt
00:00:40]} 20. Rxe7+ {[%clk 00:09:44]} {[%emt 00:00:06]} Kb6 {[%clk 00:09:21]}
{[%emt 00:00:06]} 21. Nf7 {[%clk 00:08:48]} {[%emt 00:01:00]} Bxb2+ {[%clk
00:09:06]} {[%emt 00:00:21]} 22. Kb1 {[%clk 00:08:42]} {[%emt 00:00:11]} Rc8
{[%clk 00:08:47]} {[%emt 00:00:21]} 23. Nd6 {[%clk 00:08:05]} {[%emt 00:00:44]}
Nxd6 {[%clk 00:08:01]} {[%emt 00:00:52]} 24. Rxd6+ {[%clk 00:08:06]} {[%emt
00:00:03]} Kc5 {[%clk 00:07:58]} {[%emt 00:00:08]} 25. Kxb2 {[%clk 00:07:35]}
{[%emt 00:00:37]} Kxd6 {[%clk 00:07:44]} {[%emt 00:00:18]} 26. Rxb7 {[%clk
00:07:38]} {[%emt 00:00:03]} a6 {[%clk 00:07:33]} {[%emt 00:00:16]} 27. Rxh7
{[%clk 00:07:38]} {[%emt 00:00:03]} Re8 {[%clk 00:07:35]} {[%emt 00:00:04]} 28.
Rg7 {[%clk 00:07:38]} {[%emt 00:00:06]} Re6 {[%clk 00:07:36]} {[%emt 00:00:04]}
29. Ra7 {[%clk 00:07:38]} {[%emt 00:00:05]} Kd5 {[%clk 00:07:34]} {[%emt
00:00:05]} 30. h4 {[%clk 00:06:41]} {[%emt 00:01:03]} Ke4 {[%clk 00:07:36]}
{[%emt 00:00:03]} 31. h5 {[%clk 00:06:29]} {[%emt 00:00:17]} gxh5 {[%clk
00:07:34]} {[%emt 00:00:08]} 32. gxh5 {[%clk 00:06:32]} {[%emt 00:00:02]} Kxe3
{[%clk 00:07:37]} {[%emt 00:00:02]} 33. Rd7 {[%clk 00:05:50]} {[%emt 00:00:47]}
Rh6 {[%clk 00:06:58]} {[%emt 00:00:44]} 34. Rd5 {[%clk 00:05:30]} {[%emt
00:00:24]} Ke4 {[%clk 00:07:01]} {[%emt 00:00:03]} 35. Rc5 {[%clk 00:05:29]}
{[%emt 00:00:06]} Kd4 {[%clk 00:06:52]} {[%emt 00:00:14]} 36. Rg5 {[%clk
00:05:32]} {[%emt 00:00:02]} Kc4 {[%clk 00:06:39]} {[%emt 00:00:18]} 37. Rg4+
{[%clk 00:05:23]} {[%emt 00:00:13]} Kc5 {[%clk 00:06:39]} {[%emt 00:00:04]} 38.
Rg5+ {[%clk 00:05:06]} {[%emt 00:00:23]} Kc4 {[%clk 00:06:42]} {[%emt
00:00:03]} 39. Rg4+ {[%clk 00:05:07]} {[%emt 00:00:04]} Kc5 {[%clk 00:06:45]}
{[%emt 00:00:01]} 40. Rg5+ {[%clk 00:05:11]} {[%emt 00:00:02]} 1/2-1/2

[Event "Rapid Tournament (RAP)"]
[Site "Biel, Switzerland"]
[Date "2026.07.12"]
[Round "5.49"]
[White "Gunzinger, Severin"]
[Black "Varela Tavares, Goncalo"]
[Result "1-0"]
[TimeControl "15 + 5"]
[WhiteTitle "-"]
[BlackTitle "-"]
[WhiteFideId "1362518"]
[BlackFideId "1344773"]
[WhiteElo "1607"]
[BlackElo "1880"]

1. d4 {[%clk 00:15:07]} {[%emt 00:00:04]} c6 {[%clk 00:15:08]} {[%emt
00:00:01]} 2. c4 {[%clk 00:15:10]} {[%emt 00:00:03]} d5 {[%clk 00:14:56]}
{[%emt 00:00:18]} 3. Nc3 {[%clk 00:15:12]} {[%emt 00:00:02]} e6 {[%clk
00:14:57]} {[%emt 00:00:04]} 4. e4 {[%clk 00:15:13]} {[%emt 00:00:03]} dxe4
{[%clk 00:14:53]} {[%emt 00:00:09]} 5. Nxe4 {[%clk 00:15:17]} {[%emt 00:00:02]}
Bb4+ {[%clk 00:14:41]} {[%emt 00:00:17]} 6. Bd2 {[%clk 00:15:18]} {[%emt
00:00:04]} Bxd2+ {[%clk 00:14:33]} {[%emt 00:00:13]} 7. Qxd2 {[%clk 00:15:20]}
{[%emt 00:00:02]} Nf6 {[%clk 00:14:36]} {[%emt 00:00:03]} 8. Nxf6+ {[%clk
00:15:07]} {[%emt 00:00:17]} Qxf6 {[%clk 00:14:36]} {[%emt 00:00:05]} 9. Nf3
{[%clk 00:15:06]} {[%emt 00:00:06]} O-O {[%clk 00:14:30]} {[%emt 00:00:11]} 10.
Bd3 {[%clk 00:14:58]} {[%emt 00:00:13]} Nd7 {[%clk 00:13:57]} {[%emt 00:00:38]}
11. O-O {[%clk 00:14:26]} {[%emt 00:00:37]} c5 {[%clk 00:13:56]} {[%emt
00:00:06]} 12. Bc2 {[%clk 00:14:18]} {[%emt 00:00:14]} Rd8 {[%clk 00:13:35]}
{[%emt 00:00:25]} 13. Rad1 {[%clk 00:13:51]} {[%emt 00:00:32]} Nf8 {[%clk
00:13:16]} {[%emt 00:00:24]} 14. d5 {[%clk 00:13:22]} {[%emt 00:00:34]} exd5
{[%clk 00:13:15]} {[%emt 00:00:07]} 15. cxd5 {[%clk 00:13:24]} {[%emt
00:00:03]} Bg4 {[%clk 00:13:13]} {[%emt 00:00:06]} 16. Qc3 {[%clk 00:12:39]}
{[%emt 00:00:50]} Bxf3 {[%clk 00:11:25]} {[%emt 00:01:53]} 17. Qxf6 {[%clk
00:12:08]} {[%emt 00:00:36]} gxf6 {[%clk 00:11:29]} {[%emt 00:00:02]} 18. gxf3
{[%clk 00:12:12]} {[%emt 00:00:01]} Rd6 {[%clk 00:10:20]} {[%emt 00:01:13]} 19.
Rfe1 {[%clk 00:11:21]} {[%emt 00:00:56]} Rad8 {[%clk 00:10:00]} {[%emt
00:00:25]} 20. Be4 {[%clk 00:10:40]} {[%emt 00:00:47]} Ng6 {[%clk 00:09:13]}
{[%emt 00:00:52]} 21. Re2 {[%clk 00:08:46]} {[%emt 00:01:59]} Nf4 {[%clk
00:08:59]} {[%emt 00:00:17]} 22. Red2 {[%clk 00:08:32]} {[%emt 00:00:21]} Ne6
{[%clk 00:08:57]} {[%emt 00:00:07]} 23. dxe6 {[%clk 00:08:07]} {[%emt
00:00:29]} Rxd2 {[%clk 00:05:34]} {[%emt 00:03:28]} 24. Rxd2 {[%clk 00:08:09]}
{[%emt 00:00:04]} Re8 {[%clk 00:05:35]} {[%emt 00:00:04]} 25. exf7+ {[%clk
00:08:10]} {[%emt 00:00:04]} Kxf7 {[%clk 00:05:38]} {[%emt 00:00:02]} 26. Rd7+
{[%clk 00:08:09]} {[%emt 00:00:05]} Ke6 {[%clk 00:05:41]} {[%emt 00:00:02]} 27.
Rxb7 {[%clk 00:08:07]} {[%emt 00:00:08]} f5 {[%clk 00:05:39]} {[%emt 00:00:06]}
28. Bd3 {[%clk 00:08:00]} {[%emt 00:00:12]} Rd8 {[%clk 00:05:16]} {[%emt
00:00:28]} 29. Bc4+ {[%clk 00:07:48]} {[%emt 00:00:17]} Ke5 {[%clk 00:05:19]}
{[%emt 00:00:02]} 30. Rxh7 {[%clk 00:07:41]} {[%emt 00:00:13]} Rd2 {[%clk
00:05:18]} {[%emt 00:00:05]} 31. Rxa7 {[%clk 00:07:25]} {[%emt 00:00:22]} Rxb2
{[%clk 00:05:19]} {[%emt 00:00:03]} 32. h4 {[%clk 00:07:19]} {[%emt 00:00:11]}
Kf4 {[%clk 00:05:21]} {[%emt 00:00:03]} 33. Kg2 {[%clk 00:07:08]} {[%emt
00:00:17]} Rb6 {[%clk 00:05:21]} {[%emt 00:00:05]} 34. h5 {[%clk 00:06:58]}
{[%emt 00:00:16]} Kg5 {[%clk 00:04:56]} {[%emt 00:00:28]} 35. Bf7 {[%clk
00:06:55]} {[%emt 00:00:09]} Rc6 {[%clk 00:04:42]} {[%emt 00:00:18]} 36. Ra4
{[%clk 00:06:43]} {[%emt 00:00:18]} Kf6 {[%clk 00:04:44]} {[%emt 00:00:02]} 37.
Bc4 {[%clk 00:06:18]} {[%emt 00:00:31]} Kg5 {[%clk 00:04:44]} {[%emt 00:00:05]}
38. Ra6 {[%clk 00:06:11]} {[%emt 00:00:12]} Rc8 {[%clk 00:04:25]} {[%emt
00:00:19]} 39. a4 {[%clk 00:06:00]} {[%emt 00:00:21]} Kxh5 {[%clk 00:04:21]}
{[%emt 00:00:08]} 40. a5 {[%clk 00:05:44]} {[%emt 00:00:22]} Rb8 {[%clk
00:03:59]} {[%emt 00:00:26]} 41. Rc6 {[%clk 00:05:11]} {[%emt 00:00:39]} Rb4
{[%clk 00:03:41]} {[%emt 00:00:23]} 42. Rxc5 {[%clk 00:05:10]} {[%emt
00:00:06]} Ra4 {[%clk 00:03:40]} {[%emt 00:00:05]} 43. Rxf5+ {[%clk 00:05:04]}
{[%emt 00:00:12]} Kh4 {[%clk 00:03:42]} {[%emt 00:00:03]} 44. Rf4+ {[%clk
00:04:56]} {[%emt 00:00:13]} Kg5 {[%clk 00:03:43]} {[%emt 00:00:03]} 45. Rg4+
{[%clk 00:04:55]} {[%emt 00:00:07]} Kf6 {[%clk 00:03:41]} {[%emt 00:00:07]} 46.
a6 {[%clk 00:04:58]} {[%emt 00:00:03]} Ra5 {[%clk 00:03:39]} {[%emt 00:00:06]}
47. Rh4 {[%clk 00:04:43]} {[%emt 00:00:20]} Ra4 {[%clk 00:03:33]} {[%emt
00:00:11]} 48. Rf4+ {[%clk 00:04:37]} {[%emt 00:00:11]} Kg5 {[%clk 00:03:28]}
{[%emt 00:00:08]} 49. Rg4+ {[%clk 00:04:37]} {[%emt 00:00:07]} Kf6 {[%clk
00:03:31]} {[%emt 00:00:01]} 50. Bd3 {[%clk 00:04:29]} {[%emt 00:00:14]} Ra3
{[%clk 00:03:34]} {[%emt 00:00:01]} 51. Rd4 {[%clk 00:04:27]} {[%emt 00:00:07]}
Ke5 {[%clk 00:03:27]} {[%emt 00:00:10]} 52. Rd7 {[%clk 00:04:23]} {[%emt
00:00:11]} Ke6 {[%clk 00:03:30]} {[%emt 00:00:02]} 53. Bb5 {[%clk 00:04:21]}
{[%emt 00:00:07]} 1-0